bitfinex/quotes_ETHUSD_20250123
["timestamp","ask_amount","ask_price","bid_price","bid_amount"]
[1737598489856,3.1081,3217.4,3216.6,0.03108543]
[1737598490030,0.03114738,3217.3,3216.4,5.10906]
[1737598490571,3.1081,3217.4,3216.4,5.14014543]
[1737598490872,0.63635204,3216.8,3216.4,5.14014543]
[1737598491030,3.1081,3217.4,3216.4,5.14014594]
[1737598491976,3.1081,3217.4,3216.5,3.10893]
[1737598492277,0.7697,3217.5,3216.8,2.8202]
[1737598492480,0.6233976,3217.3,3217.0,3.10844]
[1737598492771,0.6233976,3217.3,3217.0,3.13952117]
[1737598493439,0.6233976,3217.3,3217.0,3.10844]
[1737598493829,0.6233976,3217.3,3216.8,5.92887]
[1737598494266,0.6233976,3217.3,3216.8,2.8202]
[1737598496776,0.6233976,3217.3,3217.2,2.0]
[1737598497074,0.6233976,3217.3,3216.8,5.92884]
[1737598498147,0.6233976,3217.3,3216.8,3.92884]
[1737598498345,0.6233976,3217.3,3216.6,3.10885]
[1737598498560,0.03114738,3217.2,3216.6,3.10885]
[1737598498953,0.6233976,3217.3,3216.8,3.1086]
[1737598499150,0.6233976,3217.3,3217.0,3.10848]
[1737598499949,0.6233976,3217.3,3217.2,3.10829]
[1737598500454,0.7697,3217.8,3217.2,3.10829]
[1737598500455,0.7697,3217.8,3217.2,0.8202]
[1737598500655,0.7697,3218.5,3217.7,3.10773]
[1737598500965,0.387671,3218.4,3217.7,3.10773]
[1737598501175,3.13842738,3218.3,3217.4,3.10806]
[1737598501378,0.7697,3218.2,3217.4,3.10806]
[1737598501576,0.03114738,3218.1,3217.4,3.10806]
[1737598501774,0.7697,3218.2,3217.5,3.108]
[1737598501993,0.7697,3218.2,3217.2,0.8202]
[1737598501994,0.61283656,3217.8,3217.2,3.10822]
[1737598502200,0.03114738,3217.7,3217.2,3.10822]
[1737598502689,0.03114738,3217.7,3217.0,3.10846]
[1737598502863,0.03114738,3217.7,3217.2,3.10826]
[1737598503301,0.7697,3217.6,3217.2,3.10826]
[1737598503501,0.03114738,3217.5,3217.2,3.10826]
[1737598504825,0.03114738,3217.5,3217.0,3.10841]
[1737598505124,0.7697,3217.6,3217.0,3.10848]
[1737598505261,0.03114738,3217.5,3217.0,3.10848]
[1737598505458,0.03114738,3217.5,3216.9,3.10857]
[1737598505694,0.42201612,3217.5,3217.0,3.10847]
[1737598505896,0.7697,3217.6,3217.0,3.10847]
[1737598506205,0.7697,3217.6,3216.8,3.10863]
[1737598506409,0.7697,3217.6,3216.9,3.1085]
[1737598506921,0.7697,3217.6,3217.0,3.10845]
[1737598507215,0.816,3218.3,3217.7,3.10779]
[1737598507360,1.2470711,3218.3,3217.7,3.10779]
[1737598507564,0.63586759,3217.8,3217.7,3.10779]
[1737598507781,0.63586759,3217.8,3217.4,3.10805]
[1737598507994,0.63586759,3217.8,3217.6,6.21572]
[1737598508302,0.63586759,3217.8,3217.7,3.1078]
[1737598508475,3.0,3218.6,3217.7,3.1078]
[1737598508476,0.816,3219.4,3217.7,0.03107547]
[1737598508690,0.62716729,3218.3,3217.9,3.10757]
[1737598509267,0.62716729,3218.3,3217.8,3.10768]
[1737598509466,0.816,3218.2,3217.5,3.10799]
[1737598509668,0.816,3218.2,3217.8,3.10768]
[1737598509868,0.62716729,3218.3,3218.2,3.10732]
[1737598510125,0.816,3219.0,3218.4,3.10706]
[1737598510473,0.816,3219.0,3218.6,3.10685]
[1737598510903,0.816,3219.0,3218.5,3.10701]
[1737598511166,3.13786738,3218.9,3217.8,3.49067]
[1737598511518,1.44826318,3218.7,3218.1,3.1074]
[1737598511681,3.13808738,3218.6,3217.8,0.383]
[1737598511870,0.816,3218.5,3217.8,0.383]
[1737598512071,0.03114738,3218.4,3217.8,0.383]
[1737598512387,0.42655612,3218.4,3217.8,3.49064]
[1737598513185,0.39540874,3218.4,3217.9,3.10761]
[1737598513511,0.03114738,3218.3,3217.8,3.49064]
[1737598513715,0.03114738,3218.3,3217.8,0.383]
[1737598513918,0.03114738,3218.3,3217.4,3.10807]
[1737598514222,3.10748,3218.1,3217.2,3.10822]
[1737598514519,0.816,3217.9,3217.1,3.1083]
[1737598514690,0.03114738,3217.8,3217.1,3.1083]
[1737598515075,3.13886738,3217.8,3217.1,3.1083]
[1737598515276,4.55481061,3217.9,3217.2,3.10828]
[1737598515688,4.55481061,3217.9,3217.1,3.1083]
[1737598515892,5.39134357,3217.9,3217.1,3.1083]
[1737598516626,4.76016296,3217.9,3216.9,2.0]
[1737598516918,4.76016296,3217.9,3217.2,3.10827]
[1737598517492,4.76016296,3217.9,3216.9,2.0]
[1737598517694,0.60669891,3217.4,3216.9,5.10852]
[1737598517896,0.816,3217.2,3216.5,5.10894]
[1737598518082,0.03114738,3217.1,3216.7,0.46431531]
[1737598518281,0.816,3217.2,3216.7,3.57305531]
[1737598518484,0.816,3217.2,3216.8,3.10867]
[1737598518677,0.816,3217.2,3216.7,3.57306531]
[1737598519414,0.816,3217.2,3216.8,3.10867]
[1737598519731,0.816,3217.2,3216.7,3.10872]
[1737598520023,0.03114738,3217.1,3216.7,3.10877]
[1737598520185,0.03114738,3217.1,3216.6,0.46431531]
[1737598520380,3.10877,3216.7,3216.6,0.46431531]
[1737598520576,3.76165238,3216.7,3215.9,3.1095]
[1737598520781,3.90048,3216.6,3215.8,3.10962]
[1737598520990,0.03114738,3216.5,3215.6,3.10983]
[1737598521178,3.1091,3216.4,3215.7,3.10972]
[1737598521380,0.03114738,3216.3,3215.7,3.10972]
[1737598521808,0.34517212,3216.3,3215.7,3.10972]
[1737598522132,0.34517212,3216.3,3215.7,3.10969]
[1737598522281,3.90048,3216.6,3215.8,3.10964]
[1737598522488,0.03114738,3216.5,3215.8,3.10964]
[1737598522811,3.90048,3216.6,3215.8,3.10964]
[1737598523185,0.60700432,3216.1,3215.8,3.10964]
[1737598523596,0.60700432,3216.1,3215.6,3.10983]
[1737598523924,0.60700432,3216.1,3215.6,3.14092507]
[1737598524130,0.60700432,3216.1,3215.8,3.10958]
[1737598524309,0.60700432,3216.1,3216.0,3.10945]
[1737598525082,0.60700432,3216.1,3215.9,5.10954]
[1737598525528,0.60700432,3216.1,3215.6,3.10982]
[1737598525696,0.60700432,3216.1,3215.7,3.10968]
[1737598526382,0.60700432,3216.1,3215.6,3.10982]
[1737598526587,0.60700432,3216.1,3215.4,3.11002]
[1737598526785,0.60700432,3216.1,3215.2,3.94061]
[1737598526786,3.10963,3215.9,3215.0,3.11035]
[1737598527027,0.7916,3215.7,3215.0,3.11035]
[1737598527227,0.7916,3215.7,3215.3,3.11012]
[1737598527790,0.60633948,3215.6,3215.3,3.11012]
[1737598527989,0.60633948,3215.6,3214.9,2.0]
[1737598527990,0.82274738,3215.5,3214.9,5.11048]
[1737598528333,3.93270738,3215.5,3214.7,3.11069]
[1737598528506,0.45390469,3215.4,3214.7,3.11069]
[1737598528862,0.45390469,3215.4,3214.5,5.11089]
[1737598528863,0.45390469,3215.4,3214.8,3.11061]
[1737598529357,0.7916,3215.5,3214.6,3.1108]
[1737598529510,0.7916,3215.5,3214.9,3.11049]
[1737598529696,0.7916,3215.5,3214.9,3.11046]
[1737598530516,0.61423663,3215.1,3214.9,3.11046]
[1737598530915,0.61423663,3215.1,3215.0,3.11041]
[1737598531108,0.61423663,3215.1,3214.9,3.1105]
[1737598531338,0.61423663,3215.1,3214.6,0.03110421]
[1737598531339,0.7916,3215.5,3215.2,3.11018]
[1737598531639,0.61535591,3215.3,3215.2,3.11018]
[1737598531839,0.7916,3215.5,3215.2,3.11018]
[1737598532247,0.7916,3215.5,3215.3,0.0428622]
[1737598532556,0.7916,3215.5,3215.2,3.11018]
[1737598532756,0.7916,3215.5,3215.3,0.05368954]
[1737598532955,1.40888356,3215.5,3215.2,3.11021]
[1737598533264,1.40888356,3215.5,3215.3,3.16379954]
[1737598533418,1.40888356,3215.5,3215.3,0.05368954]
[1737598533949,0.61728356,3215.5,3215.4,0.05368954]
[1737598534135,0.61728356,3215.5,3215.2,3.11021]
[1737598534334,0.61728356,3215.5,3215.3,0.05368954]
[1737598534529,0.03114738,3215.4,3214.6,3.11077]
[1737598534859,3.14124738,3215.4,3214.8,0.05368954]
[1737598535059,0.7785,3215.2,3214.8,0.05368954]
[1737598535266,0.03114738,3215.1,3214.8,0.05368954]
[1737598535433,0.03114738,3215.1,3214.7,3.11064]
[1737598535634,0.7785,3215.2,3214.9,0.05346551]
[1737598535837,0.03114738,3215.1,3214.6,3.11077]
[1737598536160,0.03114738,3215.1,3214.7,3.11069]
[1737598536385,0.03114738,3215.1,3214.8,0.05346551]
[1737598536609,0.7785,3215.2,3214.8,3.16404551]
[1737598536891,0.7785,3215.2,3214.8,3.11058]
[1737598537091,0.62738025,3215.0,3214.9,0.05346551]
[1737598537647,0.62738025,3215.0,3214.5,2.0]
[1737598537848,0.7785,3214.7,3214.1,3.11122]
[1737598538086,3.88921,3214.7,3213.8,3.11149]
[1737598538289,3.11098,3214.5,3213.8,3.11149]
[1737598538490,3.88928,3214.7,3213.9,0.05177207]
[1737598538648,0.7785,3214.7,3214.4,3.11099]
[1737598538872,0.62738025,3215.0,3214.5,3.16298268]
[1737598539328,3.11058,3214.9,3214.5,0.05208268]
[1737598539617,3.1108,3214.6,3213.9,3.11147]
[1737598539920,3.11061,3214.8,3213.8,0.03111313]
[1737598540139,3.11071,3214.7,3214.0,3.11135]
[1737598540416,3.11061,3214.8,3214.1,3.11128]
[1737598540579,0.388911,3214.7,3214.2,3.11119]
[1737598540779,0.388911,3214.7,3214.1,3.11126]
[1737598540986,0.388911,3214.7,3214.2,0.05229661]
[1737598541387,0.03114738,3214.6,3214.2,0.05229661]
[1737598542126,0.7785,3214.5,3213.7,2.0]
[1737598542285,3.53428312,3214.4,3213.8,3.16385661]
[1737598542912,3.11127,3214.2,3213.8,0.05229661]
[1737598543183,3.11148,3213.9,3213.2,3.11215]
[1737598543382,0.03114738,3213.8,3213.3,0.05116206]
[1737598543585,0.31426274,3213.7,3213.3,0.05116206]
[1737598543807,0.31426274,3213.7,3213.1,4.19239474]
[1737598543808,0.03114738,3213.6,3213.1,4.19239474]
[1737598544053,3.89037,3213.5,3213.4,0.05116206]
[1737598544252,0.7785,3213.5,3213.1,1.08022474]
[1737598544463,0.7785,3213.5,3213.4,0.05136085]
[1737598544620,1.19895327,3213.5,3213.1,1.08022474]
[1737598544831,1.19895327,3213.5,3213.4,0.05136085]
[1737598545044,1.19895327,3213.5,3213.1,1.08022474]
[1737598545275,1.19895327,3213.5,3213.4,0.05022324]
[1737598545439,1.19895327,3213.5,3213.1,1.08022474]
[1737598545440,0.03114738,3213.4,3213.1,1.08022474]
[1737598545642,3.57730445,3213.4,3213.1,1.08022474]
[1737598545841,3.57730445,3213.4,3213.1,1.03022474]
[1737598546372,0.7785,3213.3,3213.1,1.03022474]
[1737598546540,0.03114738,3213.2,3212.8,2.0]
[1737598547241,0.42331712,3213.2,3212.8,2.0]
[1737598547838,0.42331712,3213.2,3212.8,5.11254]
[1737598548127,0.42331712,3213.2,3212.7,3.1126]
[1737598548324,0.42331712,3213.2,3212.6,0.23278861]
[1737598548528,3.11264,3212.7,3212.6,0.23278861]
[1737598548870,0.7785,3213.1,3212.6,0.23278861]
[1737598549038,0.7785,3212.7,3212.6,0.23278861]
[1737598549239,3.89114,3212.7,3212.6,0.23278861]
[1737598549458,3.92228738,3212.7,3212.6,0.23278861]
[1737598549654,4.8899126,3212.7,3212.6,0.23278861]
[1737598550928,1.7772726,3212.7,3212.6,0.23278861]
[1737598551164,4.8899126,3212.7,3212.6,0.23278861]
[1737598551717,0.7785,3212.6,3211.7,0.07775856]
[1737598552012,3.0,3212.2,3211.2,0.1644165]
[1737598552179,3.11371,3211.6,3211.2,0.1644165]
[1737598552386,0.7785,3211.4,3211.2,0.1644165]
[1737598552720,6.61319,3212.2,3211.1,0.45695592]
[1737598552721,3.8926,3211.2,3211.1,0.45695592]
[1737598552914,0.7785,3210.6,3210.1,3.11508]
[1737598553068,3.76047692,3211.2,3210.1,2.0]
[1737598553268,0.80964738,3211.1,3210.4,3.11477]
[1737598553511,3.92385738,3211.1,3210.4,3.11477]
[1737598553818,0.42353312,3211.1,3210.5,0.048378]
[1737598554020,3.89318,3210.6,3210.5,0.048378]
[1737598554323,1.4306815,3210.6,3209.5,3.11566]
[1737598554522,3.11505,3210.3,3209.5,3.11566]
[1737598554672,3.11509,3210.2,3209.6,0.048378]
[1737598555000,3.11509,3210.2,3209.4,0.22269694]
[1737598555001,3.11527,3210.0,3209.4,0.22269694]
[1737598555214,0.42052438,3209.9,3209.7,0.048378]
[1737598555421,0.389377,3209.9,3209.4,0.22269694]
[1737598555617,0.9992701,3209.9,3209.8,0.04801126]
[1737598555821,0.9992701,3209.9,3209.4,0.22269694]
[1737598555822,0.6098931,3209.9,3209.4,0.22269694]
[1737598556217,0.6098931,3209.9,3209.4,0.04801126]
[1737598556420,0.6098931,3209.9,3209.1,3.94493293]
[1737598556421,0.7785,3209.6,3209.1,3.94493293]
[1737598556746,3.89415,3209.6,3209.1,2.18233293]
[1737598556895,3.14697738,3209.5,3209.2,0.04330527]
[1737598557086,0.42369512,3209.4,3209.2,0.04330527]
[1737598557504,0.7785,3209.6,3209.2,0.04330527]
[1737598557711,0.6098931,3209.9,3209.4,3.11576]
[1737598557897,0.03114738,3209.8,3209.6,3.11556]
[1737598558093,0.03114738,3209.8,3209.1,2.18233293]
[1737598558532,0.7785,3209.5,3209.2,0.04330527]
[1737598558699,3.11641,3208.9,3207.9,0.1644165]
[1737598558893,0.80964738,3208.8,3208.1,3.11703]
[1737598559109,0.80964738,3208.8,3208.4,3.11678]
[1737598559336,1.41260459,3208.8,3208.3,3.11688]
[1737598559641,1.41260459,3208.8,3208.3,3.06688]
[1737598559837,1.41260459,3208.8,3207.9,0.1644165]
[1737598560141,1.41260459,3208.8,3208.1,3.11705]
[1737598560345,0.03114738,3208.7,3207.9,3.2816965]
[1737598560498,1.41260459,3208.8,3208.2,3.11699]
[1737598560704,1.41260459,3208.8,3207.9,0.1644165]
[1737598560912,1.41260459,3208.8,3208.0,3.1172]
[1737598561139,1.41260459,3208.8,3208.2,3.11691]
[1737598561341,0.03114738,3208.7,3208.0,3.1172]
[1737598561511,4.52905459,3208.8,3208.1,3.11708]
[1737598561717,1.86551005,3208.8,3208.2,3.11699]
[1737598561957,0.03114738,3208.7,3207.9,3.2817165]
[1737598562117,0.03114738,3208.7,3207.9,0.1644165]
[1737598562305,1.86551005,3208.8,3208.1,3.11708]
[1737598562721,1.86551005,3208.8,3208.2,3.11699]
[1737598562906,1.41260459,3208.8,3208.5,3.11669]
[1737598563105,0.63410459,3208.8,3208.5,3.11669]
[1737598563305,0.7785,3209.5,3208.6,2.0]
[1737598563626,0.7785,3210.2,3209.5,3.11573]
[1737598563975,0.7785,3210.2,3208.8,3.11642]
[1737598563976,0.39246574,3210.1,3209.7,3.11555]
[1737598564250,0.7785,3210.2,3209.8,0.03972936]
[1737598564454,0.7785,3210.2,3210.0,3.11521]
[1737598564654,0.8239,3210.8,3210.0,3.11521]
[1737598564859,0.8239,3210.8,3210.1,0.03942826]
[1737598565000,3.11371,3211.6,3210.1,0.03942826]
[1737598565001,0.8239,3211.4,3210.1,0.03942826]
[1737598565204,0.61975499,3211.0,3210.9,3.11435]
[1737598565408,0.8239,3211.4,3210.4,3.11487]
[1737598565722,0.8239,3211.9,3211.6,3.11363]
[1737598565943,0.62093916,3211.8,3210.8,0.0311393]
[1737598566122,0.03114738,3211.7,3211.3,3.11396]
[1737598566316,0.03114738,3211.7,3210.7,5.92522]
[1737598566652,0.62093916,3211.8,3211.6,3.11365]
[1737598566819,0.8239,3212.5,3212.0,3.11328]
[1737598567028,0.61046864,3212.2,3211.4,3.11389]
[1737598567209,0.03114738,3212.1,3211.6,3.11368]
[1737598567413,0.61046864,3212.2,3211.6,3.11368]
[1737598567613,0.03114738,3212.1,3211.5,3.11376]
[1737598567808,0.61046864,3212.2,3211.6,3.11371]
[1737598568014,0.85504738,3212.9,3211.7,0.8107]
[1737598568207,0.8239,3212.9,3212.6,3.11274]
[1737598568407,3.14311738,3213.4,3212.6,3.11274]
[1737598568408,0.85504738,3213.4,3212.6,3.11274]
[1737598568608,0.61479555,3213.2,3212.5,3.11284]
[1737598568825,0.8239,3214.1,3213.0,3.11235]
[1737598569023,0.5,3215.8,3213.4,2.0]
[1737598569024,0.61492007,3214.3,3213.4,2.0]
[1737598569225,0.8239,3215.3,3213.8,2.0]
[1737598569423,0.8239,3215.3,3214.6,3.11077]
[1737598569657,0.62606421,3215.1,3214.6,3.11077]
[1737598569814,0.03114738,3215.0,3214.3,3.11109]
[1737598570009,0.03114738,3215.0,3213.7,2.0]
[1737598570010,3.1107,3214.8,3213.7,2.0]
[1737598570283,0.31107,3214.7,3214.3,3.11105]
[1737598570607,0.03114738,3214.7,3214.1,3.11128]
[1737598570794,0.7682,3214.6,3212.8,3.11247]
[1737598570978,0.7682,3214.6,3212.3,2.794]
[1737598570979,3.11188,3213.5,3212.6,3.11273]
[1737598571142,0.34233538,3213.4,3212.4,3.1129]
[1737598571458,3.11274,3212.6,3211.7,0.794]
[1737598571784,0.03114738,3212.5,3211.7,3.1136]
[1737598571971,0.03114738,3212.5,3211.5,2.0]
[1737598572170,0.79934738,3213.3,3212.3,3.11303]
[1737598572380,0.03114738,3213.2,3211.8,2.0]
[1737598572688,0.03114738,3213.2,3211.1,0.794]
[1737598572689,0.65335161,3213.2,3211.1,1.23]
[1737598572891,0.65335161,3213.2,3211.2,5.1141]
[1737598572892,0.55,3212.9,3211.2,5.1141]
[1737598573089,0.55,3212.4,3210.8,3.23925597]
[1737598573307,3.11363,3211.7,3210.8,6.35373597]
[1737598573582,0.34251038,3211.6,3210.8,3.23925597]
[1737598573889,0.61946489,3212.1,3211.4,3.11384]
[1737598574055,0.61946489,3212.1,3211.5,3.11379]
[1737598574056,0.03114738,3212.0,3211.5,3.11379]
[1737598574256,0.03114738,3212.0,3211.3,3.11397]
[1737598574462,3.14453738,3212.0,3211.1,3.11416]
[1737598574645,0.03114738,3212.0,3211.4,0.03168444]
[1737598574842,0.37638523,3211.9,3211.2,3.11406]
[1737598575047,0.7682,3212.3,3211.5,0.03168444]
[1737598575300,0.03114738,3212.2,3211.3,3.11392]
[1737598575589,3.14435738,3212.2,3210.7,5.0]
[1737598575745,0.03114738,3212.2,3210.4,3.11483]
[1737598575945,3.11416,3211.2,3210.5,0.03168444]
[1737598576162,0.34256338,3211.1,3209.8,3.11541]
[1737598576387,0.61947783,3210.9,3209.9,0.03106341]
[1737598576687,3.1149,3210.4,3209.5,3.11574]
[1737598576891,0.03114738,3210.3,3210.0,0.03085268]
[1737598577060,3.11511,3210.2,3209.3,3.11593]
[1737598577243,0.03114738,3210.1,3209.3,3.11593]
[1737598577442,3.73388783,3210.9,3209.4,2.06099493]
[1737598577443,0.61947783,3210.9,3209.4,2.06099493]
[1737598577680,0.7682,3211.2,3210.4,3.11487]
[1737598577848,3.50246,3211.1,3210.2,3.11505]
[1737598578044,3.50246,3211.1,3210.5,0.03034223]
[1737598578045,0.38822,3211.1,3210.5,0.03034223]
[1737598578248,0.7682,3211.2,3210.6,3.11467]
[1737598578485,0.03114738,3211.1,3210.6,0.03034223]
[1737598578643,0.7682,3211.2,3210.6,0.03034223]
[1737598579005,0.7682,3211.2,3210.7,0.03034223]
[1737598579198,0.7581,3211.9,3211.0,3.11425]
[1737598579491,3.11362,3211.7,3211.1,0.0308162]
[1737598579789,0.31447674,3211.6,3211.2,3.11406]
[1737598579986,1.38405343,3211.9,3210.7,2.0]
[1737598579987,0.7581,3211.9,3210.8,0.03114199]
[1737598580191,0.7581,3211.9,3211.0,3.11423]
[1737598580192,0.03114738,3211.8,3211.0,3.11423]
[1737598580888,3.14467738,3211.8,3211.1,0.0308162]
[1737598581096,3.11395,3211.4,3211.1,0.0308162]
[1737598581383,3.11361,3211.7,3210.8,3.11447]
[1737598581543,0.34250838,3211.6,3210.8,3.11443]
[1737598581751,0.311361,3211.6,3210.9,3.1451962]
[1737598582177,0.311361,3211.6,3211.0,3.11427]
[1737598582490,3.11363,3211.7,3210.8,3.11448]
[1737598582701,0.03114738,3211.6,3211.1,0.0308162]
[1737598582849,3.1141,3211.2,3211.1,0.0308162]
[1737598583049,3.1141,3211.2,3210.1,3.11516]
[1737598583050,3.1143,3211.0,3210.1,3.11511]
[1737598583247,0.03114738,3210.9,3209.9,3.11536]
[1737598583502,0.34569212,3210.9,3210.2,0.0308162]
[1737598583709,0.34569212,3210.9,3209.9,3.11536]
[1737598583853,0.31454474,3210.9,3210.3,0.0298162]
[1737598584195,0.03114738,3210.8,3210.3,3.11493]
[1737598584393,0.03114738,3210.8,3210.4,0.02944917]
[1737598584894,3.11441,3210.9,3209.9,3.11535]
[1737598585094,0.7581,3211.0,3210.5,0.02965305]
[1737598585317,0.7581,3211.0,3210.4,3.11487]
[1737598585466,0.03114738,3210.9,3210.6,0.02965305]
[1737598585672,0.03114738,3210.9,3210.0,2.0]
[1737598585673,0.7581,3211.7,3210.9,3.1143]
[1737598585978,0.7581,3211.7,3210.5,0.02961737]
[1737598585979,3.14487738,3211.6,3211.0,0.02961737]
[1737598586193,0.39029774,3211.5,3210.3,2.0]
[1737598586494,0.63343035,3211.6,3211.0,3.11421]
[1737598586701,3.11292,3212.5,3211.5,3.11378]
[1737598587015,0.62633274,3212.5,3211.9,3.11336]
[1737598587153,0.03114738,3212.4,3212.0,3.11329]
[1737598587355,0.7581,3212.8,3212.0,3.11329]
[1737598587356,0.7581,3212.8,3212.3,3.113]
[1737598587568,0.7581,3213.2,3212.2,0.03113097]
[1737598587781,0.7581,3213.2,3212.7,3.11257]
[1737598587782,1.36731132,3213.2,3212.7,3.11257]
[1737598588002,0.03114738,3213.1,3212.5,3.11277]
[1737598588204,0.03114738,3213.1,3211.1,4.33716]
[1737598588205,3.56345187,3213.0,3211.7,3.11358]
[1737598588497,3.87127,3212.2,3211.4,3.11387]
[1737598588659,3.87127,3212.2,3210.5,3.0]
[1737598588660,3.1135,3211.9,3211.8,0.02810305]
[1737598588856,0.03114738,3211.9,3210.6,3.11468]
[1737598589141,0.7581,3211.4,3209.6,2.0]
[1737598589261,3.11447,3210.9,3210.7,0.02810305]
[1737598589486,0.311447,3210.8,3210.2,3.11498]
[1737598589685,0.63000606,3210.9,3210.3,3.11491]
[1737598589901,0.03114738,3210.8,3210.2,3.11498]
[1737598590267,0.63000606,3210.9,3210.2,3.11498]
[1737598590481,0.03114738,3210.8,3210.4,3.11485]
[1737598590664,0.03114738,3210.8,3210.2,3.11498]
[1737598590976,3.11458,3210.7,3209.8,3.11545]
[1737598591186,3.11503,3210.3,3209.5,3.11567]
[1737598591396,3.42926274,3210.6,3209.9,3.11536]
[1737598591583,3.14592738,3210.5,3209.3,0.7874]
[1737598592098,0.7581,3210.7,3210.3,3.11488]
[1737598592268,0.7581,3210.7,3210.1,3.11515]
[1737598592470,0.03114738,3210.6,3210.2,3.11499]
[1737598592676,3.11401,3211.3,3209.8,0.03115046]
[1737598592856,1.069501,3211.3,3210.2,3.11504]
[1737598593057,3.11349,3211.9,3211.2,3.1141]
[1737598593292,3.11379,3211.6,3210.9,3.1143]
[1737598593486,3.14495738,3211.5,3210.9,3.1143]
[1737598593802,3.11418,3211.2,3210.5,3.11473]
[1737598593961,3.91019,3210.9,3210.3,3.11492]
[1737598594163,3.14563738,3210.8,3209.9,3.11533]
[1737598594364,3.14563738,3210.8,3210.2,3.11498]
[1737598594365,0.03114738,3210.8,3210.2,3.11498]
[1737598594605,0.7958,3210.9,3210.3,3.11497]
[1737598594916,0.7958,3210.9,3210.4,3.11479]
[1737598595056,0.7958,3211.3,3210.2,2.0]
[1737598595259,0.64467334,3211.2,3210.6,3.11467]
[1737598595915,1.10012567,3211.2,3210.2,3.11505]
[1737598596072,3.11461,3210.7,3210.0,3.11525]
[1737598596279,0.03114738,3210.6,3210.1,3.11515]
[1737598596476,0.03114738,3210.8,3210.1,3.11515]
[1737598596707,3.14568738,3210.8,3210.1,3.11515]
[1737598596911,3.72763596,3211.2,3210.5,3.11477]
[1737598597077,0.4523436,3211.1,3210.7,3.11454]
[1737598597277,0.61352596,3211.2,3210.8,3.11446]
[1737598597507,0.7958,3211.3,3211.0,3.11423]
[1737598598024,0.7958,3211.7,3210.5,3.1147]
[1737598598320,0.7958,3211.7,3211.2,3.11404]
[1737598598522,0.7958,3211.7,3210.8,3.11446]
[1737598598523,0.03114738,3211.6,3210.8,3.11446]
[1737598598689,3.11388,3211.5,3210.7,3.11452]
[1737598599021,3.45963012,3211.4,3210.7,3.11452]
[1737598599224,0.34565012,3211.4,3210.3,3.1149]
[1737598599521,0.7958,3210.9,3210.3,3.11495]
[1737598599673,0.03114738,3210.8,3210.3,3.11495]
[1737598600004,0.7958,3210.9,3210.3,3.11495]
[1737598600595,0.7958,3210.9,3210.4,3.11487]
[1737598600778,0.7958,3210.9,3210.3,3.11496]
[1737598600981,0.7958,3210.9,3210.5,3.11475]
[1737598602313,0.03114738,3210.8,3210.3,3.11496]
[1737598602821,3.91025,3210.9,3210.2,3.11506]
[1737598603023,1.498245,3210.9,3210.2,3.11498]
[1737598603378,1.498245,3210.9,3210.0,3.11524]
[1737598603939,0.03114738,3211.1,3210.7,3.11455]
[1737598604240,3.11338,3212.0,3209.9,6.23072]
[1737598604241,0.7958,3212.1,3211.1,2.0]
[1737598604398,0.7958,3212.1,3210.8,0.03114444]
[1737598604399,0.7958,3212.6,3212.5,3.11284]
[1737598604604,0.7958,3213.1,3211.9,2.0]
[1737598604928,0.7958,3213.1,3212.6,3.11271]
[1737598605096,3.11245,3212.9,3211.6,3.11364]
[1737598605298,0.34550712,3212.8,3211.8,3.1135]
[1737598605499,3.11237,3213.0,3212.1,3.11313]
[1737598605699,3.11237,3213.0,3211.8,2.0]
[1737598605700,0.03114738,3212.7,3211.8,2.0]
[1737598606021,0.03114738,3212.7,3212.2,3.11304]
[1737598606209,0.03114738,3212.7,3212.0,3.11332]
[1737598606719,3.14369738,3212.8,3212.0,3.11332]
[1737598607030,0.7958,3213.1,3212.0,3.11332]
[1737598607236,0.7958,3213.1,3212.3,3.11297]
[1737598607734,0.7958,3213.1,3212.8,3.11247]
[1737598608310,0.03114738,3213.0,3212.8,3.11247]
[1737598608509,0.03114738,3213.0,3212.3,2.0]
[1737598608510,0.03114738,3213.0,3212.3,3.11301]
[1737598608723,3.11255,3212.8,3212.1,3.11321]
[1737598608919,0.7958,3213.1,3211.7,3.11361]
[1737598608920,0.34240238,3212.7,3211.7,3.11361]
[1737598609138,3.11317,3212.2,3211.4,3.11382]
[1737598609352,0.03114738,3212.1,3211.4,3.11382]
[1737598609552,0.03114738,3212.1,3210.2,3.85503]
[1737598609553,0.7958,3211.8,3209.9,2.0]
[1737598609813,0.55,3211.9,3209.9,2.0]
[1737598609814,3.11453,3210.8,3210.0,3.11518]
[1737598610051,0.7958,3210.7,3210.1,3.11515]
[1737598610353,0.7958,3210.7,3210.2,3.11503]
[1737598610574,3.1141,3211.2,3210.4,3.11478]
[1737598610855,0.61848931,3211.1,3210.6,3.11465]
[1737598611056,0.61848931,3211.1,3210.4,3.11486]
[1737598611243,0.61848931,3211.1,3210.6,3.1146]
[1737598611675,0.61141,3211.2,3210.6,3.1146]
[1737598612337,1.22311435,3211.2,3210.6,3.1146]
[1737598612732,1.22311435,3211.2,3210.5,3.11477]
[1737598612913,0.03114738,3211.1,3210.6,3.11462]
[1737598613114,0.03114738,3211.1,3210.5,3.11475]
[1737598613548,0.61170435,3211.2,3210.4,3.11482]
[1737598613853,3.90975,3211.4,3210.6,3.11466]
[1737598614056,3.1141,3211.2,3210.5,3.11475]
[1737598614255,0.60691131,3211.3,3210.6,3.11466]
[1737598614431,1.05857344,3211.3,3210.6,3.11466]
[1737598615070,0.60691131,3211.3,3210.8,3.11445]
[1737598615220,0.7958,3211.4,3210.9,3.11437]
[1737598615824,0.7958,3211.4,3210.8,3.11445]
[1737598616032,0.03114738,3211.3,3210.8,3.11445]
[1737598616233,0.03114738,3211.3,3210.6,3.11467]
[1737598616460,0.03114738,3211.3,3210.3,2.0]
[1737598616461,0.71542721,3211.3,3210.3,2.0]
[1737598616759,0.03114738,3211.3,3210.7,3.11456]
[1737598616966,3.14514738,3211.3,3210.5,3.11477]
[1737598617171,3.14514738,3211.3,3210.6,3.11467]
[1737598617462,3.14514738,3211.3,3210.5,3.11477]